Workbook

Sheet 3月份
A1: 陆 丰 市 2024 年 3 月 财 政 预 算 支 出 完 成 情 况 表
A2: 2024-03-31 | O2: 单位：万元
B3: 年 初 | C3: 年度预算计划 | F3: 累计 | G3: 占年 | H3: 上年 | I3: 比上年 | J3: 比上年 | K3: 本月 | L3: 上年 | M3: 比上年 | N3: 比上年
A4: 支 出 项 目 | B4: 预 算 | F4: 完成 | G4: 预算 | H4: 同期 | I4: 同期增 | J4: 同期增 | K4: 完成 | L4: 同月 | M4: 同月增 | N4: 同月增 | O4: 备 注
B5: 数 | C5: 上年结转 | D5: 上级补助 | E5: 本级安排 | F5: 数 | G5: % | H5: 完成 | I5: 减额 | J5: (减)% | K5: 数 | L5: 完成 | M5: 减额 | N5: (减)%
A6: 201、一般公共服务支出 | B6: =C6+D6+E6 -> 69,512 | C6: 2,326 | D6: 1,760 | E6: 65,426 | F6: 12,093 | G6: =F6/B6*100 -> 17.4 | H6: 25,424 | I6: =F6-H6 -> -13,331 | J6: =I6/H6*100 -> -52.4 | K6: 5,848 | L6: 10,066 | M6: =K6-L6 -> -4,218 | N6: =M6/L6*100 -> -41.9
A7: 203、国防支出 | B7: 161 | C7: 127 | D7: 34 | I7: 0 | K7: 0 | L7: 0 | M7: 0
A8: 204、公共安全支出 | B8: 58,090 | C8: 4,995 | E8: 53,095 | F8: 14,298 | G8: 24.6 | H8: 11,171 | I8: 3,127 | J8: 28.0 | K8: 5,006 | L8: 5,966 | M8: -960 | N8: -16.1
A9: 205、教育支出 | B9: 243,007 | C9: 53,874 | D9: 6,314 | E9: 182,819 | F9: 42,103 | G9: 17.3 | H9: 47,759 | I9: -5,656 | J9: -11.8 | K9: 15,400 | L9: 10,098 | M9: 5,302 | N9: 52.5
A10: 206、科学技术支出 | B10: 3,069 | C10: 405 | D10: 1,520 | E10: 1,144 | F10: 278 | G10: 9.1 | H10: 287 | I10: -9 | J10: -3.1 | K10: 13 | L10: 18 | M10: -5 | N10: -27.8
A11: 207、文化体育与传媒支出 | B11: 10,333 | C11: 1,379 | D11: 14 | E11: 8,940 | F11: 1,275 | G11: 12.3 | H11: 1,277 | I11: -2 | J11: -0.2 | K11: 340 | L11: 504 | M11: -164 | N11: -32.5
A12: 208、社会保障和就业支出 | B12: 178,458 | C12: 85,411 | D12: 1,600 | E12: 91,447 | F12: 67,059 | G12: 37.6 | H12: 59,598 | I12: 7,461 | J12: 12.5 | K12: 8,661 | L12: 5,984 | M12: 2,677 | N12: 44.7
A13: 210、卫生健康支出 | B13: 140,567 | C13: 93,403 | D13: 1,793 | E13: 45,371 | F13: 82,703 | G13: 58.8 | H13: 87,515 | I13: -4,812 | J13: -5.5 | K13: 4,156 | L13: 5,458 | M13: -1,302 | N13: -23.9
A14: 211、节能环保支出 | B14: 5,191 | C14: 377 | D14: 1,308 | E14: 3,506 | F14: 479 | G14: 9.2 | H14: 1,062 | I14: -583 | J14: -54.9 | K14: 261 | L14: 1 | M14: 260 | N14: 26000.0
A15: 212、城乡社区支出 | B15: 21,835 | C15: 912 | D15: 438 | E15: 20,485 | F15: 5,766 | G15: 26.4 | H15: 5,885 | I15: -119 | J15: -2.0 | K15: 1,985 | L15: 2,914 | M15: -929 | N15: -31.9
A16: 213、农林水支出 | B16: 108,249 | C16: 51,752 | D16: 42,127 | E16: 14,370 | F16: 11,854 | G16: 11.0 | H16: 19,589 | I16: -7,735 | J16: -39.5 | K16: 2,304 | L16: 6,375 | M16: -4,071 | N16: -63.9
A17: 214、交通运输支出 | B17: 34,638 | C17: 16,477 | D17: 8,278 | E17: 9,883 | F17: 3,501 | G17: 10.1 | H17: 26,737 | I17: -23,236 | J17: -86.9 | K17: 1,197 | L17: 25,494 | M17: -24,297 | N17: -95.3
A18: 215、资源勘探工业信息等支出 | B18: 765 | D18: 240 | E18: 525 | F18: 200 | G18: 26.1 | H18: 143 | I18: 57 | J18: 39.9 | K18: 132 | L18: 13 | M18: 119 | N18: 915.4
A19: 216、商业服务业等支出 | B19: 872 | D19: 110 | E19: 762 | F19: 531 | G19: 60.9 | H19: 314 | I19: 217 | J19: 69.1 | K19: 376 | L19: 146 | M19: 230 | N19: 157.5
A20: 217、金融支出 | B20: 0 | F20: 1 | I20: 1 | K20: 0 | L20: 0 | M20: 0
A21: 220、自然资源海洋气象等支出 | B21: 4,974 | C21: 450 | D21: 572 | E21: 3,952 | F21: 812 | G21: =F21/B21*100 -> 16.3 | H21: 1,102 | I21: -290 | J21: =I21/H21*100 -> -26.3 | K21: 315 | L21: 587 | M21: -272 | N21: =M21/L21*100 -> -46.3
A22: 221、住房保障支出 | B22: 18,868 | D22: 183 | E22: 18,685 | F22: 2,283 | G22: 12.1 | H22: 4,150 | I22: -1,867 | J22: -45.0 | K22: 1,508 | L22: 1,684 | M22: -176 | N22: -10.5
A23: 222、粮油物资储备支出 | B23: 2,700 | E23: 2,700 | F23: 400 | G23: 14.8 | I23: 400 | K23: 400 | L23: 0 | M23: 400
A24: 224、灾害防治及应急管理支出 | B24: 2,852 | C24: 89 | D24: 46 | E24: 2,717 | F24: 463 | G24: 16.2 | H24: 1,221 | I24: -758 | J24: -62.1 | K24: 166 | L24: 559 | M24: -393 | N24: -70.3
A25: 232、债务付息支出 | B25: 4,260 | E25: 4,260 | F25: 20 | G25: 0.5 | I25: 20 | K25: 20 | L25: 0 | M25: 20
A26: 233、债务发行费用支出 | B26: 40 | E26: 40 | F26: 6 | G26: 15.0 | I26: 6 | K26: 6 | L26: 0 | M26: 6
A27: 227、预备费 | B27: 0 | I27: 0 | K27: 0 | L27: 0 | M27: 0
A28: 229、其他支出 | B28: 4,885 | E28: 4,885 | F28: 673 | G28: =F28/B28*100 -> 13.8 | H28: 775 | I28: -102 | J28: =I28/H28*100 -> -13.2 | K28: 612 | L28: 586 | M28: 26 | N28: =M28/L28*100 -> 4.4
A29: 一、一般公共预算支出合计 | B29: =SUM(B6:B28) -> 913,326 | C29: 311,977 | D29: 66,337 | E29: 535,012 | F29: 246,798 | G29: 27.0 | H29: =SUM(H6:H28) -> 294,009 | I29: -47,211 | J29: -16.1 | K29: 48,706 | L29: 76,453 | M29: -27,747 | N29: -36.3
A30: 二、政府性基金预算支出 | B30: 352,806 | F30: 34,934 | G30: 9.9 | H30: 98,422 | I30: -63,488 | J30: -64.5 | K30: 18,291 | L30: 25,732 | M30: -7,441 | N30: -28.9
A31: 三、国有资本经营支出 | B31: 5,666 | F31: 305 | G31: 5.4 | H31: 506 | I31: -201 | J31: -39.7 | K31: 304 | L31: 60 | M31: 244 | N31: 406.7
A32: 四、债务还本支出 | B32: 49,680 | F32: 2,880 | G32: 5.8 | H32: 0 | I32: 2,880 | K32: 2,880 | L32: 0 | M32: 2,880
A33: 支出合计 | B33: =B29+B30+B31+B32 -> 1,321,478 | C33: =C29+C30+C31 -> 311,977 | D33: =D29+D30+D31 -> 66,337 | E33: =E29+E30+E31 -> 535,012 | F33: =F29+F30+F31+F32 -> 284,917 | G33: 21.6 | H33: 392,937 | I33: -108,020 | J33: -27.5 | K33: 70,181 | L33: 102,245 | M33: -32,064 | N33: -31.4
